[Event "GrandPrix_29.05"]
[Site "Chess.com"]
[Date "2020.05.29"]
[Round "3"]
[White "IljaJoke"]
[Black "tigra"]
[Result "0-1"]
[WhiteElo "2307"]
[BlackElo "2582"]
[TimeControl "600+2"]
[EndTime "10:25:18 PDT"]
[Termination "tigra won by checkmate"]

1. d4 {[%clk 0:10:01.9]} 1... Nf6 {[%clk 0:09:56.7]} 2. c4 {[%clk 0:10:03.2]}
2... g6 {[%clk 0:09:57.8]} 3. Nc3 {[%clk 0:10:03.2]} 3... d5 {[%clk 0:09:59.1]}
4. cxd5 {[%clk 0:10:04.1]} 4... Nxd5 {[%clk 0:10:01]} 5. e4 {[%clk 0:10:04.8]}
5... Nxc3 {[%clk 0:10:02.2]} 6. bxc3 {[%clk 0:10:06.7]} 6... Bg7 {[%clk
0:10:03.8]} 7. Bc4 {[%clk 0:10:07.4]} 7... O-O {[%clk 0:10:03.5]} 8. Ne2 {[%clk
0:10:08.2]} 8... c5 {[%clk 0:10:04.7]} 9. Be3 {[%clk 0:10:08.5]} 9... Nc6 {[%clk
0:10:05.3]} 10. h4 {[%clk 0:10:09.3]} 10... cxd4 {[%clk 0:09:16.7]} 11. cxd4
{[%clk 0:10:08.4]} 11... Qa5+ {[%clk 0:09:17.9]} 12. Kf1 {[%clk 0:10:09.6]}
12... b6 {[%clk 0:08:18.6]} 13. Rc1 {[%clk 0:08:47.5]} 13... Bb7 {[%clk
0:07:19.4]} 14. h5 {[%clk 0:08:47.5]} 14... Rad8 {[%clk 0:07:12.3]} 15. hxg6
{[%clk 0:08:34.2]} 15... hxg6 {[%clk 0:07:14.2]} 16. Nf4 {[%clk 0:07:29.3]}
16... Ba6 {[%clk 0:06:34.3]} 17. Bxa6 {[%clk 0:05:59.3]} 17... Qxa6+ {[%clk
0:06:33.4]} 18. Kg1 {[%clk 0:06:00.8]} 18... Nxd4 {[%clk 0:04:08.7]} 19. Qg4
{[%clk 0:05:50.3]} 19... Rc8 {[%clk 0:03:20.1]} 20. Rd1 {[%clk 0:04:44.2]} 20...
Rfd8 {[%clk 0:03:07.2]} 21. Nd5 {[%clk 0:03:15.2]} 21... Qe2 {[%clk 0:02:23.5]}
22. Qxe2 {[%clk 0:01:48.6]} 22... Nxe2+ {[%clk 0:02:23]} 23. Kf1 {[%clk
0:01:50.2]} 23... Nc3 {[%clk 0:02:07.5]} 24. Nxc3 {[%clk 0:01:26.6]} 24... Bxc3
{[%clk 0:02:06.7]} 25. Ke2 {[%clk 0:01:26.8]} 25... Rxd1 {[%clk 0:01:52.4]} 26.
Rxd1 {[%clk 0:01:26.9]} 26... Bb4 {[%clk 0:01:52.2]} 27. Rb1 {[%clk 0:00:40.3]}
27... Rc2+ {[%clk 0:01:25.9]} 28. Kd3 {[%clk 0:00:40.7]} 28... Rc3+ {[%clk
0:01:26.8]} 29. Kd4 {[%clk 0:00:37.5]} 29... a5 {[%clk 0:01:27.3]} 30. Bd2
{[%clk 0:00:33.2]} 30... e5+ {[%clk 0:01:27.1]} 31. Kxe5 {[%clk 0:00:33.3]}
31... Rc5+ {[%clk 0:01:28]} 32. Kf6 {[%clk 0:00:29.3]} 32... Bxd2 {[%clk
0:01:23.3]} 33. Rxb6 {[%clk 0:00:31.2]} 33... Bg5# {[%clk 0:01:24.1]} 0-1

[Event "GrandPrix_29.05"]
[Site "Chess.com"]
[Date "2020.05.29"]
[Round "3"]
[White "ploky25"]
[Black "SipkeErnst"]
[Result "0-1"]
[WhiteElo "2006"]
[BlackElo "2076"]
[TimeControl "600+2"]
[EndTime "10:25:20 PDT"]
[Termination "SipkeErnst won on time"]

1. d4 {[%clk 0:10:01.4]} 1... d5 {[%clk 0:09:55.7]} 2. c4 {[%clk 0:10:00.5]}
2... c6 {[%clk 0:09:53.3]} 3. Nf3 {[%clk 0:09:58.9]} 3... Nf6 {[%clk 0:09:44.5]}
4. Nc3 {[%clk 0:09:57.9]} 4... e6 {[%clk 0:09:43.2]} 5. Bg5 {[%clk 0:09:51.3]}
5... Nbd7 {[%clk 0:09:30]} 6. cxd5 {[%clk 0:09:37.5]} 6... exd5 {[%clk
0:09:27.9]} 7. e3 {[%clk 0:09:37]} 7... Be7 {[%clk 0:09:18.6]} 8. Qc2 {[%clk
0:09:26.4]} 8... h6 {[%clk 0:09:07.3]} 9. Bh4 {[%clk 0:09:16.4]} 9... Nh5 {[%clk
0:08:55.2]} 10. Bxe7 {[%clk 0:09:12.3]} 10... Qxe7 {[%clk 0:08:55.1]} 11. O-O-O
{[%clk 0:09:02.4]} 11... Nb6 {[%clk 0:08:55.2]} 12. h3 {[%clk 0:08:57.7]} 12...
Be6 {[%clk 0:08:35.5]} 13. Kb1 {[%clk 0:08:51]} 13... O-O-O {[%clk 0:08:29.3]}
14. Rc1 {[%clk 0:08:44]} 14... Kb8 {[%clk 0:08:26.5]} 15. Na4 {[%clk 0:08:38.6]}
15... Nxa4 {[%clk 0:07:29.8]} 16. Qxa4 {[%clk 0:08:38.4]} 16... Bf5+ {[%clk
0:07:26.1]} 17. Ka1 {[%clk 0:08:37.7]} 17... Nf6 {[%clk 0:07:27.6]} 18. Rc3
{[%clk 0:07:58.4]} 18... Ne4 {[%clk 0:07:26.9]} 19. Ra3 {[%clk 0:07:51.7]} 19...
b5 {[%clk 0:07:16.9]} 20. Ne5 {[%clk 0:07:04.8]} 20... Rd6 {[%clk 0:07:04]} 21.
Qa6 {[%clk 0:06:27.1]} 21... Rc8 {[%clk 0:05:26.7]} 22. Bd3 {[%clk 0:05:29.8]}
22... f6 {[%clk 0:04:58.7]} 23. Nf3 {[%clk 0:05:28.5]} 23... c5 {[%clk
0:04:43.3]} 24. Qxb5+ {[%clk 0:05:16.4]} 24... Rb6 {[%clk 0:04:43.5]} 25. Qa5
{[%clk 0:05:11.1]} 25... c4 {[%clk 0:04:44.5]} 26. Bxe4 {[%clk 0:04:57.9]} 26...
Bxe4 {[%clk 0:04:44.9]} 27. Rc1 {[%clk 0:04:48.3]} 27... Rc7 {[%clk 0:04:29.9]}
28. Rac3 {[%clk 0:03:59.8]} 28... Rcb7 {[%clk 0:04:06.4]} 29. b3 {[%clk
0:03:56.5]} 29... Rb5 {[%clk 0:04:07.6]} 30. Qa4 {[%clk 0:03:45.8]} 30... Rb4
{[%clk 0:04:08.7]} 31. Qc6 {[%clk 0:03:09.4]} 31... Rxb3 {[%clk 0:04:07.1]} 32.
Rxb3 {[%clk 0:02:56]} 32... Rxb3 {[%clk 0:04:07.4]} 33. Nd2 {[%clk 0:02:24.4]}
33... Rb7 {[%clk 0:03:35.6]} 34. Nxe4 {[%clk 0:00:38.7]} 34... Qxe4 {[%clk
0:03:33.9]} 35. Qd6+ {[%clk 0:00:39]} 35... Ka8 {[%clk 0:03:35.2]} 36. Qc6
{[%clk 0:00:26.2]} 36... a5 {[%clk 0:02:52.6]} 37. Qa6+ {[%clk 0:00:22.2]} 37...
Kb8 {[%clk 0:02:53.6]} 38. Qxa5 {[%clk 0:00:20.1]} 38... Kc8 {[%clk 0:02:52.1]}
39. a3 {[%clk 0:00:04.5]} 39... Kd7 {[%clk 0:02:34.7]} 40. Qa6 {[%clk
0:00:02.6]} 40... Rb3 {[%clk 0:02:26.3]} 41. Qa7+ {[%clk 0:00:02.7]} 41... Ke8
{[%clk 0:02:24]} 0-1

[Event "GrandPrix_29.05"]
[Site "Chess.com"]
[Date "2020.05.29"]
[Round "3"]
[White "Chessialist"]
[Black "GM_dmitrij"]
[Result "1-0"]
[WhiteElo "2457"]
[BlackElo "2519"]
[TimeControl "600+2"]
[EndTime "10:25:21 PDT"]
[Termination "Chessialist won by checkmate"]

1. c4 {[%clk 0:10:01.9]} 1... e5 {[%clk 0:09:17.1]} 2. Nc3 {[%clk 0:10:01]} 2...
Bb4 {[%clk 0:09:16.3]} 3. Nd5 {[%clk 0:09:58.2]} 3... a5 {[%clk 0:09:15.2]} 4.
g3 {[%clk 0:09:55.2]} 4... Nf6 {[%clk 0:09:14.7]} 5. Bg2 {[%clk 0:09:55.7]} 5...
O-O {[%clk 0:09:14.9]} 6. a3 {[%clk 0:09:53.4]} 6... Bc5 {[%clk 0:09:10.5]} 7.
e3 {[%clk 0:09:54.3]} 7... d6 {[%clk 0:08:50.3]} 8. Ne2 {[%clk 0:09:48.7]} 8...
c6 {[%clk 0:08:13.2]} 9. Nxf6+ {[%clk 0:09:43]} 9... Qxf6 {[%clk 0:08:15.1]} 10.
Nc3 {[%clk 0:09:44.3]} 10... Be6 {[%clk 0:08:06.2]} 11. d3 {[%clk 0:09:26.7]}
11... Qd8 {[%clk 0:07:55.9]} 12. O-O {[%clk 0:09:21.3]} 12... Bb6 {[%clk
0:07:14.6]} 13. b3 {[%clk 0:07:44.9]} 13... d5 {[%clk 0:06:56.5]} 14. Na4 {[%clk
0:07:37.5]} 14... Ba7 {[%clk 0:06:49.1]} 15. c5 {[%clk 0:07:33.8]} 15... Nd7
{[%clk 0:06:45.8]} 16. d4 {[%clk 0:07:34]} 16... Bb8 {[%clk 0:06:32.1]} 17. Bd2
{[%clk 0:07:31]} 17... Bc7 {[%clk 0:05:47.3]} 18. Qc2 {[%clk 0:07:05.4]} 18...
e4 {[%clk 0:05:16.9]} 19. b4 {[%clk 0:06:50.4]} 19... axb4 {[%clk 0:05:17.1]}
20. axb4 {[%clk 0:06:52.3]} 20... f5 {[%clk 0:05:16.5]} 21. Nc3 {[%clk
0:06:47.5]} 21... g5 {[%clk 0:04:58.2]} 22. b5 {[%clk 0:06:42.6]} 22... Rxa1
{[%clk 0:04:18.7]} 23. Rxa1 {[%clk 0:06:41.5]} 23... f4 {[%clk 0:04:19.3]} 24.
Ra7 {[%clk 0:06:22.8]} 24... Qb8 {[%clk 0:03:24.3]} 25. Qa2 {[%clk 0:05:53.4]}
25... fxg3 {[%clk 0:02:37]} 26. hxg3 {[%clk 0:05:52.5]} 26... Bxg3 {[%clk
0:02:35.3]} 27. Nxe4 {[%clk 0:05:53]} 27... Bh4 {[%clk 0:02:21.7]} 28. Be1
{[%clk 0:05:29]} 28... Qe8 {[%clk 0:01:51.3]} 29. Nd6 {[%clk 0:04:46.5]} 29...
Qh5 {[%clk 0:01:52.1]} 30. Ra8 {[%clk 0:04:28.2]} 30... Nb8 {[%clk 0:01:20.2]}
31. Qc2 {[%clk 0:03:13.4]} 31... Bg4 {[%clk 0:01:11.1]} 32. bxc6 {[%clk
0:02:55.4]} 32... bxc6 {[%clk 0:00:40.6]} 33. Qb1 {[%clk 0:02:40.7]} 33... Nd7
{[%clk 0:00:40.9]} 34. Rxf8+ {[%clk 0:02:39.8]} 34... Nxf8 {[%clk 0:00:42.8]}
35. Nf5 {[%clk 0:02:11.9]} 35... Bf3 {[%clk 0:00:19.7]} 36. Ne7+ {[%clk
0:02:06.8]} 36... Kh8 {[%clk 0:00:12]} 37. Qf5 {[%clk 0:02:02.9]} 37... Qe8
{[%clk 0:00:08.1]} 38. Qf6# {[%clk 0:02:02.6]} 1-0

[Event "GrandPrix_29.05"]
[Site "Chess.com"]
[Date "2020.05.29"]
[Round "3"]
[White "MaxVavulin"]
[Black "mikolka1985"]
[Result "0-1"]
[WhiteElo "2083"]
[BlackElo "2447"]
[TimeControl "600+2"]
[EndTime "10:25:25 PDT"]
[Termination "mikolka1985 won by resignation"]

1. e4 {[%clk 0:10:01.9]} 1... e5 {[%clk 0:09:58.2]} 2. Nf3 {[%clk 0:10:02.1]}
2... Nc6 {[%clk 0:09:58.3]} 3. Bb5 {[%clk 0:10:02.5]} 3... a6 {[%clk 0:09:58.2]}
4. Ba4 {[%clk 0:10:03.7]} 4... Nf6 {[%clk 0:09:58.9]} 5. Qe2 {[%clk 0:10:00.1]}
5... Bc5 {[%clk 0:09:54.5]} 6. c3 {[%clk 0:09:59.3]} 6... O-O {[%clk 0:09:53.1]}
7. d3 {[%clk 0:09:52.9]} 7... Re8 {[%clk 0:09:52.4]} 8. Nbd2 {[%clk 0:09:52.6]}
8... b5 {[%clk 0:09:50.4]} 9. Bb3 {[%clk 0:09:49.2]} 9... d6 {[%clk 0:09:11.6]}
10. Nf1 {[%clk 0:09:40.2]} 10... Be6 {[%clk 0:08:44.2]} 11. Bxe6 {[%clk
0:08:35.9]} 11... Rxe6 {[%clk 0:08:42.8]} 12. Ng3 {[%clk 0:08:35.1]} 12... h6
{[%clk 0:08:21.7]} 13. O-O {[%clk 0:08:31]} 13... d5 {[%clk 0:08:21.4]} 14. Nh4
{[%clk 0:08:17.1]} 14... Qd7 {[%clk 0:08:20.2]} 15. Nhf5 {[%clk 0:08:12.8]}
15... Rd8 {[%clk 0:08:18.9]} 16. Be3 {[%clk 0:06:03.1]} 16... Bxe3 {[%clk
0:08:11.5]} 17. fxe3 {[%clk 0:04:54.5]} 17... dxe4 {[%clk 0:08:07.8]} 18. d4
{[%clk 0:04:54.2]} 18... exd4 {[%clk 0:08:03.8]} 19. exd4 {[%clk 0:04:33.3]}
19... Ne7 {[%clk 0:08:01.5]} 20. Ne3 {[%clk 0:04:09.6]} 20... Ned5 {[%clk
0:07:41.5]} 21. Nef5 {[%clk 0:04:06.4]} 21... e3 {[%clk 0:07:34]} 22. Rae1
{[%clk 0:03:59.3]} 22... Rde8 {[%clk 0:07:32.8]} 23. Qf3 {[%clk 0:03:55.7]}
23... Kh7 {[%clk 0:07:13.9]} 24. Nh5 {[%clk 0:01:51]} 24... Nxh5 {[%clk
0:06:56.7]} 25. Qxh5 {[%clk 0:01:51.3]} 25... Rf6 {[%clk 0:06:53.6]} 26. Rf3
{[%clk 0:01:41.5]} 26... Re4 {[%clk 0:06:41.8]} 27. Ng3 {[%clk 0:01:19.9]} 27...
Rxf3 {[%clk 0:06:20.1]} 28. Nxe4 {[%clk 0:01:08]} 28... Rf5 {[%clk 0:06:13]} 29.
Qh3 {[%clk 0:00:56.6]} 29... Qe6 {[%clk 0:05:26.2]} 30. Ng3 {[%clk 0:00:56.6]}
30... Rf6 {[%clk 0:05:26.4]} 31. Qh5 {[%clk 0:00:38]} 31... g6 {[%clk
0:05:12.8]} 32. Qd1 {[%clk 0:00:30.5]} 32... Rf2 {[%clk 0:05:10.8]} 33. Re2
{[%clk 0:00:18.2]} 33... Rxe2 {[%clk 0:04:43.7]} 34. Nxe2 {[%clk 0:00:19]} 34...
f5 {[%clk 0:04:36.6]} 35. Qd3 {[%clk 0:00:18]} 35... f4 {[%clk 0:04:34.4]} 36.
b3 {[%clk 0:00:18.9]} 36... Qg4 {[%clk 0:04:23.1]} 37. h3 {[%clk 0:00:19.5]}
37... Qg5 {[%clk 0:03:56.6]} 38. Qe4 {[%clk 0:00:19.3]} 38... b4 {[%clk
0:03:42.5]} 39. cxb4 {[%clk 0:00:09.4]} 39... c6 {[%clk 0:03:35.8]} 40. a4
{[%clk 0:00:08.2]} 40... Qh4 {[%clk 0:03:33.9]} 41. Qe6 {[%clk 0:00:03.2]} 41...
Kg7 {[%clk 0:03:01.9]} 42. Qd6 {[%clk 0:00:04]} 42... Qf2+ {[%clk 0:02:55.9]}
43. Kh2 {[%clk 0:00:05.1]} 43... Qxe2 {[%clk 0:02:55.3]} 44. Qd7+ {[%clk
0:00:06.6]} 44... Kf8 {[%clk 0:02:51.6]} 45. Qd8+ {[%clk 0:00:07.3]} 45... Kf7
{[%clk 0:02:51.5]} 46. Qd7+ {[%clk 0:00:05]} 46... Ne7 {[%clk 0:02:51]} 47. d5
{[%clk 0:00:05.9]} 47... cxd5 {[%clk 0:02:47.9]} 0-1

[Event "GrandPrix_29.05"]
[Site "Chess.com"]
[Date "2020.05.29"]
[Round "3"]
[White "Denis0027"]
[Black "MartinCerveny"]
[Result "1-0"]
[WhiteElo "2316"]
[BlackElo "2066"]
[TimeControl "600+2"]
[EndTime "10:25:40 PDT"]
[Termination "Denis0027 won by resignation"]

1. Nf3 {[%clk 0:10:01.9]} 1... d5 {[%clk 0:09:59.3]} 2. g3 {[%clk 0:10:02.4]}
2... Nf6 {[%clk 0:09:51.7]} 3. Bg2 {[%clk 0:10:00.5]} 3... e6 {[%clk 0:09:52.9]}
4. O-O {[%clk 0:10:00.6]} 4... Be7 {[%clk 0:09:52.7]} 5. d3 {[%clk 0:10:01.4]}
5... O-O {[%clk 0:09:52.5]} 6. Nbd2 {[%clk 0:10:02.9]} 6... a5 {[%clk
0:09:52.5]} 7. e4 {[%clk 0:10:01.6]} 7... a4 {[%clk 0:09:48.5]} 8. a3 {[%clk
0:10:02.2]} 8... c5 {[%clk 0:09:44.8]} 9. Re1 {[%clk 0:10:03]} 9... Nc6 {[%clk
0:09:44.3]} 10. e5 {[%clk 0:09:57]} 10... Nd7 {[%clk 0:09:44.1]} 11. Nf1 {[%clk
0:09:57.2]} 11... Qc7 {[%clk 0:09:39.2]} 12. Bf4 {[%clk 0:09:56.7]} 12... b5
{[%clk 0:09:39.4]} 13. Ne3 {[%clk 0:09:52.2]} 13... Bb7 {[%clk 0:09:28.4]} 14.
h4 {[%clk 0:09:04.8]} 14... Nb6 {[%clk 0:08:41.9]} 15. h5 {[%clk 0:09:00.2]}
15... d4 {[%clk 0:08:32.5]} 16. Ng4 {[%clk 0:08:57.8]} 16... Nd5 {[%clk
0:08:33.2]} 17. Qd2 {[%clk 0:08:51.9]} 17... Rfd8 {[%clk 0:08:23.6]} 18. h6
{[%clk 0:08:52.1]} 18... g6 {[%clk 0:08:24.4]} 19. Bg5 {[%clk 0:08:51.4]} 19...
c4 {[%clk 0:08:14.6]} 20. Bxe7 {[%clk 0:08:47]} 20... Qxe7 {[%clk 0:08:16.5]}
21. dxc4 {[%clk 0:08:20.1]} 21... bxc4 {[%clk 0:08:17.3]} 22. Nxd4 {[%clk
0:08:21.2]} 22... Nxd4 {[%clk 0:08:12.2]} 23. Qxd4 {[%clk 0:08:23.1]} 23... Rac8
{[%clk 0:06:49.2]} 24. Bxd5 {[%clk 0:07:25.6]} 24... Rxd5 {[%clk 0:06:31.7]} 25.
Nf6+ {[%clk 0:07:18.2]} 25... Qxf6 {[%clk 0:06:32.5]} 26. Qxd5 {[%clk
0:07:19.3]} 26... Qe7 {[%clk 0:06:31.6]} 27. Qd6 {[%clk 0:06:40.7]} 27... Qxd6
{[%clk 0:06:05.8]} 28. exd6 {[%clk 0:06:42.6]} 28... Kf8 {[%clk 0:05:57.4]} 29.
Re3 {[%clk 0:05:39.6]} 29... Bd5 {[%clk 0:05:54.7]} 30. Rd1 {[%clk 0:05:39.6]}
30... Rc5 {[%clk 0:05:43.9]} 31. b3 {[%clk 0:05:19.2]} 31... cxb3 {[%clk
0:05:37]} 32. cxb3 {[%clk 0:05:21.1]} 32... axb3 {[%clk 0:05:30.4]} 33. Rxb3
{[%clk 0:05:12]} 33... Rc8 {[%clk 0:05:06.9]} 34. Rb6 {[%clk 0:05:05.2]} 34...
Ke8 {[%clk 0:05:00.5]} 35. Ra6 {[%clk 0:04:45.3]} 35... g5 {[%clk 0:03:54.5]}
36. g4 {[%clk 0:03:45.6]} 36... Rc4 {[%clk 0:03:38]} 37. Rb1 {[%clk 0:02:27.2]}
37... Rxg4+ {[%clk 0:03:22.1]} 38. Kh2 {[%clk 0:02:28.5]} 38... f5 {[%clk
0:02:27.3]} 39. f3 {[%clk 0:01:38.6]} 39... Rh4+ {[%clk 0:01:47.1]} 40. Kg2
{[%clk 0:01:39.9]} 40... Kd7 {[%clk 0:01:35.2]} 41. Rbb6 {[%clk 0:01:35.5]}
41... Rc4 {[%clk 0:01:14.3]} 42. Ra7+ {[%clk 0:01:32.4]} 42... Kd8 {[%clk
0:01:14.4]} 43. Rb8+ {[%clk 0:01:30.5]} 43... Rc8 {[%clk 0:01:11.9]} 44. Rxc8+
{[%clk 0:01:31.8]} 44... Kxc8 {[%clk 0:01:13.8]} 45. Rxh7 {[%clk 0:01:33.3]}
45... g4 {[%clk 0:01:12.7]} 46. Rc7+ {[%clk 0:01:33.8]} 46... Kd8 {[%clk
0:01:12.7]} 47. h7 {[%clk 0:01:35.7]} 1-0

[Event "GrandPrix_29.05"]
[Site "Chess.com"]
[Date "2020.05.29"]
[Round "3"]
[White "Eltaj_Safarli"]
[Black "Mizner"]
[Result "1-0"]
[WhiteElo "2486"]
[BlackElo "2125"]
[TimeControl "600+2"]
[EndTime "10:25:42 PDT"]
[Termination "Eltaj_Safarli won by resignation"]

1. e4 {[%clk 0:10:01.9]} 1... e6 {[%clk 0:10:01]} 2. d4 {[%clk 0:10:02]} 2... d5
{[%clk 0:10:02.3]} 3. Nd2 {[%clk 0:10:00.3]} 3... c5 {[%clk 0:10:02.6]} 4. Ngf3
{[%clk 0:09:59.4]} 4... cxd4 {[%clk 0:10:03.3]} 5. Nxd4 {[%clk 0:09:57.8]} 5...
Nc6 {[%clk 0:10:03.8]} 6. Bb5 {[%clk 0:09:57.5]} 6... Bd7 {[%clk 0:10:04.9]} 7.
Nxc6 {[%clk 0:09:58.4]} 7... bxc6 {[%clk 0:10:06.8]} 8. Bd3 {[%clk 0:09:59.1]}
8... Qc7 {[%clk 0:10:02.9]} 9. O-O {[%clk 0:09:54.2]} 9... Ne7 {[%clk
0:10:02.4]} 10. Qe2 {[%clk 0:09:25.4]} 10... g6 {[%clk 0:10:01.1]} 11. Nf3
{[%clk 0:09:01.6]} 11... Bg7 {[%clk 0:10:00.6]} 12. Bg5 {[%clk 0:09:02.8]} 12...
Bxb2 {[%clk 0:08:56.5]} 13. e5 {[%clk 0:08:53]} 13... Bxa1 {[%clk 0:07:37.2]}
14. Rxa1 {[%clk 0:08:54.9]} 14... Ng8 {[%clk 0:07:08.4]} 15. c4 {[%clk
0:08:36.1]} 15... h6 {[%clk 0:07:05.8]} 16. Be3 {[%clk 0:08:32.2]} 16... c5
{[%clk 0:06:57]} 17. cxd5 {[%clk 0:08:28.2]} 17... exd5 {[%clk 0:06:57.2]} 18.
Rc1 {[%clk 0:07:49.6]} 18... c4 {[%clk 0:06:51.2]} 19. e6 {[%clk 0:07:45.7]}
19... Bxe6 {[%clk 0:06:15.2]} 20. Bd4 {[%clk 0:07:21.4]} 20... Qf4 {[%clk
0:03:42]} 21. Re1 {[%clk 0:04:04.8]} 21... cxd3 {[%clk 0:03:24.4]} 22. Qxd3
{[%clk 0:04:06.7]} 22... Nf6 {[%clk 0:02:32.8]} 23. Be5 {[%clk 0:03:02.7]} 23...
Qc4 {[%clk 0:01:30.3]} 24. Qa3 {[%clk 0:03:03.3]} 24... Rg8 {[%clk 0:00:06]} 25.
Bxf6 {[%clk 0:03:03]} 25... Qc7 {[%clk 0:00:05.4]} 26. Nd4 {[%clk 0:02:14.6]}
26... Rb8 {[%clk 0:00:04.1]} 27. h3 {[%clk 0:02:05.3]} 27... Rb6 {[%clk
0:00:04.1]} 28. Rc1 {[%clk 0:01:51.6]} 28... Qb7 {[%clk 0:00:05.5]} 29. Qa4+
{[%clk 0:01:39.4]} 29... Kf8 {[%clk 0:00:06.2]} 30. Qc2 {[%clk 0:01:35.8]} 30...
g5 {[%clk 0:00:06.1]} 31. Qh7 {[%clk 0:01:27.9]} 31... Rg6 {[%clk 0:00:04.6]}
32. Qh8+ {[%clk 0:01:28.1]} 32... Rg8 {[%clk 0:00:05.9]} 33. Bg7+ {[%clk
0:01:24.8]} 33... Ke7 {[%clk 0:00:06.5]} 34. Qxg8 {[%clk 0:01:26.3]} 34... Rb1
{[%clk 0:00:06.8]} 1-0

[Event "GrandPrix_29.05"]
[Site "Chess.com"]
[Date "2020.05.29"]
[Round "3"]
[White "PotapovaM"]
[Black "Bengalas"]
[Result "0-1"]
[WhiteElo "2160"]
[BlackElo "2214"]
[TimeControl "600+2"]
[EndTime "10:25:42 PDT"]
[Termination "Bengalas won by checkmate"]

1. d4 {[%clk 0:10:01.9]} 1... Nf6 {[%clk 0:10:00.1]} 2. c4 {[%clk 0:10:02.1]}
2... e6 {[%clk 0:10:00.9]} 3. Nf3 {[%clk 0:10:02.7]} 3... Bb4+ {[%clk
0:10:00.7]} 4. Nbd2 {[%clk 0:10:03.1]} 4... O-O {[%clk 0:10:00.5]} 5. a3 {[%clk
0:10:00.6]} 5... Be7 {[%clk 0:10:01.9]} 6. e4 {[%clk 0:10:01.3]} 6... d6 {[%clk
0:10:03.3]} 7. Bd3 {[%clk 0:09:58.9]} 7... Nfd7 {[%clk 0:10:03.1]} 8. O-O {[%clk
0:09:54.6]} 8... e5 {[%clk 0:10:02.9]} 9. Re1 {[%clk 0:09:30.7]} 9... a5 {[%clk
0:09:55.6]} 10. Nb1 {[%clk 0:09:13.4]} 10... Bf6 {[%clk 0:09:29.6]} 11. d5
{[%clk 0:09:07.5]} 11... g6 {[%clk 0:08:27]} 12. Nc3 {[%clk 0:08:57.3]} 12...
Bg7 {[%clk 0:08:26.7]} 13. Rb1 {[%clk 0:08:21.9]} 13... c5 {[%clk 0:08:16.2]}
14. Nb5 {[%clk 0:07:47.4]} 14... Nf6 {[%clk 0:08:11.7]} 15. Bg5 {[%clk
0:07:39.6]} 15... h6 {[%clk 0:08:10.6]} 16. Bd2 {[%clk 0:06:49.7]} 16... Ne8
{[%clk 0:08:08.7]} 17. b4 {[%clk 0:06:30.9]} 17... axb4 {[%clk 0:08:06.8]} 18.
axb4 {[%clk 0:06:31.2]} 18... Na6 {[%clk 0:08:07.9]} 19. bxc5 {[%clk 0:04:17.2]}
19... Nxc5 {[%clk 0:08:07.6]} 20. Bb4 {[%clk 0:04:14]} 20... b6 {[%clk
0:07:30.6]} 21. Bc2 {[%clk 0:04:10.6]} 21... Bd7 {[%clk 0:07:15.6]} 22. Ra1
{[%clk 0:04:07.5]} 22... Rxa1 {[%clk 0:06:49]} 23. Qxa1 {[%clk 0:04:09.4]} 23...
Bxb5 {[%clk 0:06:50.1]} 24. cxb5 {[%clk 0:04:11.3]} 24... Nc7 {[%clk 0:06:51.2]}
25. Bxc5 {[%clk 0:03:46.3]} 25... dxc5 {[%clk 0:06:22.3]} 26. Qb2 {[%clk
0:02:29.3]} 26... Ne8 {[%clk 0:06:05.6]} 27. Ra1 {[%clk 0:01:53.9]} 27... Nd6
{[%clk 0:06:01.8]} 28. Ra7 {[%clk 0:01:54.6]} 28... Qb8 {[%clk 0:05:42.1]} 29.
Rd7 {[%clk 0:01:47.3]} 29... Rd8 {[%clk 0:05:29.7]} 30. Rxd8+ {[%clk 0:01:20.8]}
30... Qxd8 {[%clk 0:05:31.6]} 31. Nd2 {[%clk 0:01:11.3]} 31... Qa8 {[%clk
0:05:30.7]} 32. Bd3 {[%clk 0:01:05.5]} 32... Qa4 {[%clk 0:05:24.2]} 33. f3
{[%clk 0:00:54.1]} 33... h5 {[%clk 0:04:51.5]} 34. Kf2 {[%clk 0:00:48.8]} 34...
Bh6 {[%clk 0:03:29.2]} 35. Nb1 {[%clk 0:00:10.8]} 35... f6 {[%clk 0:02:57.4]}
36. Ke2 {[%clk 0:00:11.6]} 36... c4 {[%clk 0:02:47.1]} 37. Bc2 {[%clk
0:00:12.3]} 37... Qxb5 {[%clk 0:02:47]} 38. Qa2 {[%clk 0:00:06.5]} 38... Qc5
{[%clk 0:02:16.7]} 39. Qa8+ {[%clk 0:00:02.7]} 39... Kg7 {[%clk 0:02:16.3]} 40.
Qa7+ {[%clk 0:00:03.6]} 40... Nf7 {[%clk 0:02:15.8]} 41. Kd1 {[%clk 0:00:02.4]}
41... Qg1+ {[%clk 0:02:11]} 42. Ke2 {[%clk 0:00:03.6]} 42... Qxg2+ {[%clk
0:02:07.8]} 43. Kd1 {[%clk 0:00:04]} 43... Qf1# {[%clk 0:02:07.8]} 0-1